bitfinex/quotes_ETHUSD_20250925
["timestamp","ask_amount","ask_price","bid_price","bid_amount"]
[1758835845303,3.0,3903.2,3903.1,0.00200001]
[1758835845515,9.515,3903.2,3903.1,0.00200001]
[1758835846503,2.96319355,3904.2,3903.3,2.56193125]
[1758835846504,2.56153079,3904.0,3903.3,2.56193125]
[1758835846704,2.96318106,3904.2,3903.4,0.2295]
[1758835846705,2.135,3903.6,3903.4,0.2295]
[1758835846903,2.135,3903.6,3903.4,2.79136913]
[1758835846904,4.381,3903.5,3903.4,2.79136913]
[1758835847110,4.509,3903.5,3903.4,3.40225604]
[1758835847611,7.509,3903.5,3903.4,2.85986913]
[1758835848115,0.001,3903.6,3903.5,2.5618035]
[1758835848315,0.001,3903.6,3903.5,2.89732153]
[1758835848809,0.001,3903.6,3903.5,3.02532153]
[1758835849006,0.001,3903.6,3903.5,2.9997035]
[1758835849196,0.001,3903.6,3903.5,3.81461897]
[1758835849404,0.001,3903.6,3903.5,4.632237]
[1758835850089,0.001,3903.6,3903.5,3.81461897]
[1758835851037,0.001,3903.6,3903.5,2.9312035]
[1758835853145,0.001,3903.6,3903.5,0.128]
[1758835853329,0.128,3903.5,3903.3,2.56192131]
[1758835853509,4.382,3903.4,3903.1,0.00200001]
[1758835853709,4.382,3903.4,3903.2,2.5620004]
[1758835854011,4.382,3903.4,3903.3,2.56193477]
[1758835854626,0.128,3903.5,3903.4,2.56186913]
[1758835854937,3.313,3903.5,3903.4,2.80326913]
[1758835855471,3.313,3903.5,3903.4,2.56186913]
[1758835856108,0.128,3903.5,3903.4,2.56186913]
[1758835856309,0.128,3903.5,3903.4,3.34146821]
[1758835856510,0.001,3903.6,3903.5,2.5618035]
[1758835856731,0.001,3903.6,3903.5,2.8717035]
[1758835857011,7.191,3903.6,3903.5,2.8717035]
[1758835858004,7.191,3903.6,3903.5,2.8032035]
[1758835858208,7.191,3903.6,3903.1,0.00200001]
[1758835858434,7.191,3903.6,3903.2,2.5620004]
[1758835858625,7.191,3903.6,3903.1,0.00200001]
[1758835858848,7.191,3903.6,3903.5,2.5618035]
[1758835859525,0.128,3903.5,3903.4,2.56186908]
[1758835860542,0.128,3903.5,3903.4,2.56186913]
[1758835860839,2.56199015,3903.3,3903.1,0.00200001]
[1758835861042,9.0720004,3903.2,3903.1,0.00200001]
[1758835861228,12.7564004,3903.2,3903.1,1e-08]
[1758835861438,15.08760848,3903.2,3903.1,1e-08]
[1758835862645,6.01560808,3903.2,3903.1,1e-08]
[1758835862948,12.7594004,3903.2,3903.1,1e-08]
[1758835866852,13.5514004,3903.2,3903.1,1e-08]
[1758835867028,20.7414004,3903.2,3903.1,1e-08]
[1758835869255,6.35413169,3903.0,3902.9,1e-08]
[1758835869434,11.1129783,3903.0,3902.9,1e-08]
[1758835869633,14.22288715,3903.0,3902.9,1e-08]
[1758835870230,6.35465696,3902.2,3901.1,0.02]
[1758835870558,12.86365696,3902.2,3901.1,0.02]
[1758835870764,13.55465696,3902.2,3901.1,0.02]
[1758835871932,13.93950357,3902.2,3901.1,0.02]
[1758835872125,15.62990959,3902.2,3901.1,0.02]
[1758835872675,14.99676298,3902.2,3901.1,0.02]
[1758835872839,14.99676298,3902.2,3901.4,0.235]
[1758835872840,15.24406298,3902.2,3901.4,0.235]
[1758835873937,15.24406298,3902.2,3901.1,0.02]
[1758835874329,15.24406298,3902.2,3901.2,0.235]
[1758835875341,8.73606298,3902.2,3901.2,2.79830436]
[1758835875656,15.24506298,3902.2,3901.4,0.235]
[1758835875851,14.99776298,3902.2,3901.4,0.235]
[1758835876054,14.55406298,3902.2,3901.4,0.235]
[1758835876925,7.25306298,3902.2,3901.7,0.235]
[1758835877130,12.07165696,3902.2,3901.7,0.235]
[1758835878644,13.91010357,3902.2,3901.1,0.02]
[1758835879578,13.52525696,3902.2,3901.1,0.02]
[1758835882083,13.88299033,3902.2,3902.1,1e-08]
[1758835882340,13.52525696,3902.2,3902.1,1e-08]
[1758835882575,15.91893524,3902.2,3902.1,1e-08]
[1758835883748,23.10893524,3902.2,3902.1,1e-08]
[1758835883948,23.10893524,3902.2,3902.1,0.00200001]
[1758835885851,23.21173592,3902.2,3902.1,0.00200001]
[1758835886181,16.04113592,3902.2,3902.1,0.00200001]
[1758835886385,22.44833524,3902.2,3902.1,0.00200001]
[1758835887294,21.65633524,3902.2,3902.1,0.24340001]
[1758835888760,15.14633524,3902.2,3902.1,0.24340001]
[1758835888990,21.65633524,3902.2,3902.1,0.00200001]
[1758835889987,15.91993524,3902.2,3902.1,0.00200001]
[1758835890581,23.10993524,3902.2,3902.1,0.00200001]
[1758835890798,5.56291967,3901.8,3901.7,1e-08]
[1758835891006,11.1414839,3901.8,3901.7,1e-08]
[1758835891207,13.2774839,3901.8,3901.7,1e-08]
[1758835891410,13.9390839,3901.8,3901.7,1e-08]
[1758835892672,14.34108424,3901.8,3901.7,1e-08]
[1758835893767,15.49081761,3901.8,3901.7,1e-08]
[1758835894305,22.16681761,3901.8,3901.7,1e-08]
[1758835896500,15.49081761,3901.8,3901.7,1e-08]
[1758835897866,15.49081761,3901.8,3900.6,0.0705]
[1758835897867,22.68081761,3901.8,3900.1,0.02]
[1758835898120,3.792,3900.9,3900.1,0.02]
[1758835898418,5.56397107,3900.2,3900.1,0.02]
[1758835898570,9.93797107,3900.2,3900.1,0.02]
[1758835899604,9.93797107,3900.2,3900.1,0.2614]
[1758835899908,10.06778646,3900.2,3900.1,0.2614]
[1758835900113,10.06778646,3900.2,3900.1,0.02]
[1758835900114,11.33095422,3900.2,3900.1,0.02]
[1758835900409,10.06778646,3900.2,3900.1,0.2614]
[1758835900573,10.06778646,3900.2,3900.1,0.02]
[1758835900772,18.04978646,3900.2,3900.1,0.02]
[1758835901123,18.48638646,3900.2,3900.1,0.02]
[1758835901707,18.48638646,3900.2,3900.1,0.022]
[1758835901923,20.65413199,3900.2,3900.1,0.022]
[1758835902272,20.21753199,3900.2,3900.1,0.022]
[1758835902495,20.65413199,3900.2,3900.1,0.022]
[1758835902684,20.87913199,3900.2,3900.1,0.022]
[1758835904090,15.84353199,3900.2,3900.1,0.022]
[1758835904296,20.18678646,3900.2,3900.1,0.2634]
[1758835904688,20.18678646,3900.2,3900.1,0.022]
[1758835906506,20.18678646,3900.2,3900.1,0.2634]
[1758835906887,12.88378646,3900.2,3900.1,0.2634]
[1758835907082,19.39478646,3900.2,3900.1,0.2634]
[1758835907286,21.63087199,3900.2,3900.1,0.022]
[1758835909793,22.30277199,3900.2,3900.1,0.022]
[1758835910917,21.63087199,3900.2,3900.1,0.022]
[1758835911421,22.07147199,3900.2,3900.1,0.022]
[1758835911587,14.88147199,3900.2,3900.1,0.022]
[1758835911996,14.44087199,3900.2,3900.1,0.022]
[1758835913621,7.92987199,3900.2,3900.1,0.2565]
[1758835913818,12.20578646,3900.2,3900.1,0.2565]
[1758835915397,12.20578646,3900.2,3900.1,0.022]
[1758835916210,3.0,3900.2,3900.1,0.327]
[1758835916403,9.511,3900.2,3900.1,0.327]
[1758835917548,2.56356539,3900.9,3900.2,2.56391359]
[1758835917852,0.128,3900.3,3900.2,2.56391359]
[1758835918037,0.128,3900.7,3900.1,0.022]
[1758835918217,0.128,3900.7,3900.6,2.56370814]
[1758835918533,4.502,3900.7,3900.6,2.86870814]
[1758835918726,4.374,3900.7,3900.6,2.86870814]
[1758835920460,2.56291248,3901.9,3901.1,2.56333437]
[1758835920750,3.0,3901.7,3901.2,0.305]
[1758835920962,4.374,3901.6,3900.7,0.02563642]
[1758835921124,2.56336422,3901.2,3900.4,2.7983297]
[1758835921319,4.374,3901.1,3900.5,2.56375448]
[1758835921535,6.93739355,3901.1,3900.5,0.2345]
[1758835921734,2.56344527,3901.0,3900.5,0.2345]
[1758835921932,2.56362161,3900.8,3900.3,0.2345]
[1758835922138,6.511,3900.7,3900.3,0.2345]
[1758835922438,6.511,3900.7,3900.4,0.2345]
[1758835923013,6.511,3900.7,3900.1,2.58603292]
[1758835923014,0.96058605,3900.6,3900.1,0.022]
[1758835923225,2.56397107,3900.2,3900.1,0.022]
[1758835923423,6.93697107,3900.2,3900.1,0.022]
[1758835923666,7.39467107,3900.2,3900.1,0.022]
[1758835923971,6.93697107,3900.2,3900.1,0.022]
[1758835924176,11.64528519,3900.2,3900.1,0.022]
[1758835924556,8.39201412,3900.2,3900.1,0.022]
[1758835924864,13.78228519,3900.2,3900.1,0.022]
[1758835926070,14.18445692,3900.2,3900.1,0.022]
[1758835926434,13.78228519,3900.2,3900.1,0.022]
[1758835927460,0.792,3898.8,3898.1,0.02]
[1758835927661,2.56452726,3899.4,3898.1,0.02]
[1758835927662,2.56523527,3898.3,3898.1,0.02]
[1758835927873,5.495,3898.2,3898.1,0.02]
[1758835928029,11.06028654,3898.2,3898.1,0.02]
[1758835928235,4.88106417,3898.2,3898.1,0.2517]
[1758835928438,7.14511567,3898.2,3898.1,0.2517]
[1758835928633,12.71040221,3898.2,3898.1,0.02]
[1758835929263,10.14511567,3898.2,3898.1,0.02]
[1758835929440,10.01806417,3898.2,3898.1,0.02]
[1758835929640,10.01806417,3898.2,3898.1,0.2517]
[1758835930073,3.50406417,3898.2,3898.1,0.2517]
[1758835930245,9.513,3898.2,3898.1,2.88755235]
[1758835930769,4.375,3898.2,3898.1,0.3222]
[1758835930950,6.512,3898.2,3898.1,2.88755235]
[1758835931350,6.512,3898.2,3898.1,0.3222]
[1758835931564,6.512,3898.2,3898.1,0.02]
[1758835931986,9.07728654,3898.2,3898.1,0.02]
[1758835932538,6.512,3898.2,3898.1,0.02]
[1758835932937,9.07728654,3898.2,3898.1,0.02]
[1758835934144,6.512,3898.2,3898.1,0.02]
[1758835934340,9.07728654,3898.2,3898.1,0.02]
[1758835934971,6.512,3898.2,3898.1,0.02]
[1758835935768,0.50796926,3898.5,3898.1,0.02]
[1758835936071,6.512,3898.4,3898.1,0.02]
[1758835936272,7.1632,3898.4,3898.1,0.02]
[1758835936571,7.6209,3898.4,3898.1,0.02]
[1758835936772,2.56526445,3898.3,3898.1,0.02]
[1758835936956,4.375,3898.2,3898.1,0.02]
[1758835938573,6.94028654,3898.2,3898.1,0.02]
[1758835938756,8.26588392,3898.2,3898.1,0.02]
[1758835939072,8.94318392,3898.2,3898.1,0.02]
[1758835939576,11.94318392,3898.2,3898.1,0.02]
[1758835940761,11.94318392,3898.2,3898.1,0.022]
[1758835941285,12.73518392,3898.2,3898.1,0.022]
[1758835942249,8.36018392,3898.2,3898.1,0.022]
[1758835942549,14.87318392,3898.2,3898.1,0.022]
[1758835944569,15.58381356,3898.2,3898.1,1e-08]
[1758835944770,15.23091729,3898.2,3898.1,1e-08]
[1758835946455,22.42091729,3898.2,3898.1,1e-08]
[1758835946791,2.41052015,3897.2,3897.1,0.00918669]
[1758835946960,16.11352015,3897.2,3897.1,0.00918669]
[1758835947153,19.79082015,3897.2,3897.1,0.00918669]
[1758835947356,13.39282015,3897.2,3897.1,0.00918669]
[1758835947599,13.39282015,3897.2,3896.1,0.02]
[1758835947600,3.3257659,3896.2,3896.1,1e-08]
[1758835947757,12.43417994,3896.2,3896.1,1e-08]
[1758835948395,3.0,3896.2,3896.1,1e-08]
[1758835948689,12.54000335,3896.2,3896.1,1e-08]
[1758835948894,12.10160335,3896.2,3896.1,1e-08]
[1758835949055,6.538,3896.2,3896.1,1e-08]
[1758835949257,9.539,3896.2,3896.1,1e-08]
[1758835949554,9.539,3896.2,3896.1,0.23360001]
[1758835950161,9.539,3896.2,3896.1,1e-08]
[1758835950454,5.138,3896.2,3896.1,0.30410001]
[1758835950758,9.539,3896.2,3896.1,0.30410001]
[1758835952471,9.539,3896.2,3896.1,0.23360001]
[1758835952851,13.05950335,3896.2,3896.1,1e-08]
[1758835953253,9.539,3896.2,3896.1,1e-08]
[1758835953869,9.539,3896.2,3896.1,0.23360001]
[1758835954368,9.539,3896.2,3896.1,0.23110237]
[1758835954603,3.0,3896.2,3896.1,0.23110237]
[1758835954811,9.536,3896.2,3896.1,0.23110237]
[1758835955304,3.128,3896.1,3895.7,0.0705]
[1758835955587,6.536,3896.2,3895.7,0.0705]
[1758835955588,4.398,3896.0,3895.7,2.63743154]
[1758835955789,4.398,3896.0,3895.7,0.0705]
[1758835956161,4.398,3896.0,3895.7,2.63741853]
[1758835956354,4.398,3896.0,3895.8,0.2336]
[1758835956759,0.128,3895.8,3895.4,2.80067365]
[1758835956959,4.396,3895.7,3895.5,2.80061982]
[1758835957187,4.396,3895.7,3895.6,0.2336]
[1758835958105,8.5257,3895.7,3895.1,0.02]
[1758835958297,8.88343337,3895.7,3895.1,0.02]
[1758835958455,3.0,3895.3,3895.1,0.02]
[1758835958661,0.4524,3895.7,3895.1,0.02]
[1758835958860,3.0,3895.5,3895.2,0.2336]
[1758835959055,5.56726227,3895.2,3895.1,0.02]
[1758835959261,10.75526227,3895.2,3895.1,0.02]
[1758835959576,11.43256227,3895.2,3895.1,0.02]
[1758835959780,12.8325328,3895.2,3895.1,0.022]
[1758835960785,8.4365328,3895.2,3895.1,0.022]
[1758835960964,14.9755328,3895.2,3895.1,0.022]
[1758835962195,8.1976328,3895.2,3895.1,0.022]
[1758835962493,14.9745328,3895.2,3895.1,0.022]
[1758835962694,2.9945979,3894.4,3894.1,0.02]
[1758835962869,6.538,3894.3,3894.1,0.02]
[1758835963068,9.10587924,3894.3,3894.1,0.02]
[1758835963393,6.538,3894.3,3894.1,0.02]
[1758835964186,6.538,3894.3,3894.1,0.2536]
[1758835964411,6.538,3894.3,3894.2,0.2336]
[1758835964593,4.398,3894.3,3894.2,0.2336]
[1758835964891,9.537,3894.3,3894.2,0.2336]
[1758835965193,9.537,3894.3,3894.1,0.02]
[1758835965397,2.56792152,3894.2,3894.1,0.02]
[1758835965599,6.84206098,3894.2,3894.1,0.02]
[1758835965774,3.08196688,3893.2,3892.1,0.02]
[1758835965975,12.62296688,3893.2,3892.4,0.2336]
[1758835966383,13.30026688,3893.2,3892.4,0.2336]
[1758835966591,6.08196688,3893.2,3892.4,0.2336]
[1758835966903,12.62396688,3893.2,3892.4,0.2336]
[1758835967308,12.62396688,3893.2,3892.1,0.02]
[1758835967309,13.06236688,3893.2,3892.1,0.02]
[1758835967479,14.86435325,3893.2,3892.2,0.2336]
[1758835967909,14.86435325,3893.2,3892.1,0.02]
[1758835968587,14.86435325,3893.2,3893.1,1e-08]
[1758835969016,9.08301512,3893.2,3893.1,1e-08]
[1758835969220,21.95428175,3893.2,3893.1,1e-08]
[1758835969718,22.19508175,3893.2,3893.1,1e-08]
[1758835970015,8.96608175,3893.2,3893.1,1e-08]
[1758835970184,8.72528175,3893.2,3893.1,1e-08]
[1758835970390,15.26828175,3893.2,3893.1,1e-08]
[1758835971812,14.58998175,3893.2,3893.1,1e-08]
[1758835972005,15.30178175,3893.2,3893.1,1e-08]
[1758835972286,6.08200501,3892.2,3892.1,0.02]
[1758835972618,12.62900501,3892.2,3892.1,0.02]
[1758835972820,7.59773873,3892.2,3892.1,0.02]
[1758835973005,14.14373873,3892.2,3892.1,0.02]
[1758835973208,12.00773873,3892.2,3892.1,0.02]
[1758835973518,14.14773873,3892.2,3892.1,0.02]
[1758835973820,7.59773873,3892.2,3892.1,0.02]
[1758835974026,13.43593873,3892.2,3892.1,0.02]
[1758835974911,13.43693873,3892.2,3892.1,0.02]
[1758835975086,4.59593372,3892.2,3892.1,0.02]
[1758835975293,6.55,3892.2,3892.1,0.02]
[1758835975492,12.11924104,3892.2,3892.1,0.02]
[1758835975900,13.62304104,3892.2,3892.1,0.02]
[1758835977193,3.0,3892.2,3892.1,0.02]
[1758835977411,9.553,3892.2,3892.1,0.2608]
[1758835977804,12.12224104,3892.2,3892.1,0.02]
[1758835978423,15.08701981,3892.2,3892.1,0.02]
[1758835978835,15.08701981,3892.2,3892.1,0.022]
[1758835981312,15.44475318,3892.2,3892.1,0.022]
[1758835982034,14.37221981,3892.2,3892.1,0.022]
[1758835982423,15.08401981,3892.2,3892.1,0.022]
[1758835984543,15.08301981,3892.2,3892.1,0.022]
[1758835984746,8.53401981,3892.2,3892.1,0.022]
[1758835985243,15.08201981,3892.2,3892.1,0.022]
[1758835985745,8.53401981,3892.2,3892.1,0.022]
[1758835985944,15.08001981,3892.2,3892.1,0.022]
[1758835986873,0.792,3891.9,3891.1,0.02]
[1758835987062,5.56990131,3891.2,3891.1,0.02]
[1758835987283,12.11790131,3891.2,3891.1,0.02]
[1758835987431,12.90990131,3891.2,3891.1,0.02]
[1758835987766,13.57440131,3891.2,3891.1,0.02]
[1758835987987,0.71062964,3891.2,3890.1,0.02]
[1758835988130,3.0,3891.1,3890.5,0.0705]
[1758835988466,6.559,3891.0,3890.9,2.57004326]
[1758835988633,5.5694471,3891.9,3891.0,2.57001765]
[1758835988828,3.0,3892.0,3891.1,0.3025]
[1758835989047,3.0,3891.8,3891.2,0.232]
[1758835989245,6.561,3891.7,3891.3,0.0705]
[1758835989451,0.40303144,3892.5,3891.6,2.56958929]
[1758835989772,2.141,3892.4,3892.3,2.56917503]
[1758835990086,2.141,3892.7,3892.6,2.56897703]
[1758835990232,0.02,3893.9,3892.6,0.3025]
[1758835990538,7.606,3893.8,3893.0,2.56865884]
[1758835990743,7.606,3893.8,3893.1,2.56864559]
[1758835990943,0.39956088,3893.9,3893.2,0.232]
[1758835991148,0.02,3893.9,3893.3,0.0705]
[1758835991369,0.02,3893.9,3893.7,2.56818743]
[1758835991679,0.02,3893.9,3893.8,2.56818532]
[1758835991973,4.58,3893.9,3893.8,2.56818532]
[1758835992136,4.58,3893.9,3893.8,2.87068532]
[1758835992333,0.02,3893.9,3893.8,2.87068532]
[1758835992539,4.441,3893.9,3893.8,2.87068532]
[1758835992754,0.02,3893.9,3893.8,2.87068532]
[1758835992955,4.441,3893.9,3893.8,0.3025]
[1758835993239,4.441,3893.9,3893.2,0.232]
[1758835993240,3.0,3893.8,3893.2,0.232]
[1758835993455,6.567,3893.7,3893.2,0.232]
[1758835993932,2.56831723,3893.6,3893.2,0.232]
[1758835994359,2.56831723,3893.6,3893.3,0.232]
[1758835994570,6.567,3893.7,3893.4,0.232]
[1758835995082,2.141,3893.6,3893.5,0.232]
[1758835995283,6.566,3893.6,3893.5,0.232]
[1758835996168,0.02,3893.9,3893.5,0.232]
[1758835996169,2.58818015,3893.9,3893.5,0.232]
[1758835996363,6.564,3893.8,3893.6,0.232]
[1758835996675,4.422,3893.7,3893.6,0.232]
[1758835996859,4.421,3893.7,3893.6,0.232]
[1758835997265,6.562,3893.7,3893.6,0.232]
[1758835997857,6.565,3893.7,3893.6,0.232]
[1758835998053,4.423,3893.7,3893.6,0.3025]
[1758835998490,4.423,3893.7,3893.2,0.1985]
[1758835998695,4.423,3893.7,3893.3,0.2443]
[1758835999006,4.423,3893.7,3892.1,0.002]
[1758835999007,0.6874,3893.6,3892.8,0.2443]
[1758835999153,2.5683832,3893.5,3892.8,0.2443]
[1758835999355,4.427,3893.4,3892.8,0.2443]
[1758835999561,4.70951586,3893.3,3892.8,0.2443]
[1758835999861,2.141,3893.3,3892.8,0.2443]
[1758836000073,2.141,3893.3,3892.9,0.2443]
[1758836000385,2.141,3893.3,3893.0,0.2443]
[1758836000559,2.141,3893.3,3893.1,0.2443]
[1758836001192,2.141,3893.3,3893.2,0.3148]
[1758836001409,2.141,3893.3,3892.1,0.002]
[1758836001558,2.141,3893.3,3892.4,2.56909216]
[1758836001755,2.141,3893.3,3892.6,2.5689321]
[1758836001992,2.141,3893.3,3892.5,0.2443]
[1758836002409,2.56864881,3893.1,3892.1,0.002]
[1758836002611,4.427,3893.0,3892.1,0.002]
[1758836002908,2.56905596,3892.5,3892.1,0.002]
[1758836003105,6.568,3892.4,3892.1,0.002]
[1758836003275,2.56917503,3892.3,3892.1,0.002]
[1758836003475,2.56924104,3892.2,3892.1,0.002]
[1758836003878,3.02194104,3892.2,3892.1,0.002]
[1758836004098,3.25664104,3892.2,3892.1,0.002]
[1758836004498,4.49601715,3892.2,3892.1,0.002]
[1758836004816,2.56971875,3891.5,3891.1,0.02]
[1758836005024,2.56990131,3891.2,3891.1,0.02]
[1758836005520,3.02260131,3891.2,3891.1,0.02]
[1758836005722,3.25730131,3891.2,3891.1,0.02]
[1758836005908,2.80460131,3891.2,3891.1,0.02]
[1758836006222,2.56990131,3891.2,3891.1,0.02]
[1758836006424,7.19366997,3891.2,3891.1,0.02]
[1758836006579,7.42836997,3891.2,3891.1,0.02]
[1758836007409,8.22036997,3891.2,3891.1,0.02]
[1758836007797,8.62348269,3891.2,3891.1,0.02]
[1758836008913,13.05048269,3891.2,3891.1,1e-08]
[1758836009130,7.93608269,3891.2,3891.1,1e-08]
[1758836009427,14.39948269,3891.2,3891.1,1e-08]
[1758836010154,6.567,3891.2,3891.1,1e-08]
[1758836010362,6.567,3891.2,3891.1,0.24430001]
[1758836010918,1.23937611,3892.2,3891.1,0.24430001]
[1758836011123,2.56952531,3891.8,3891.1,0.24430001]
[1758836011353,0.128,3891.2,3891.1,0.24430001]
[1758836011557,4.555,3891.2,3891.1,2.81425432]
[1758836012055,0.128,3891.2,3891.1,2.88675432]
[1758836012261,4.555,3891.2,3891.1,2.88675432]
[1758836012474,4.555,3891.2,3891.1,1e-08]
[1758836012475,7.12490131,3891.2,3891.1,1e-08]
[1758836012826,7.57760131,3891.2,3891.1,1e-08]
[1758836013150,8.22156261,3891.2,3891.1,1e-08]
[1758836014135,8.62464818,3891.2,3891.1,1e-08]
[1758836014731,11.62464818,3891.2,3891.1,1e-08]
[1758836015230,3.5372613,3891.2,3891.1,1e-08]
[1758836015436,9.696,3891.2,3891.1,1e-08]
[1758836015635,12.26590131,3891.2,3891.1,1e-08]
[1758836021058,2.142,3891.2,3891.1,0.24430001]
[1758836021271,2.142,3891.2,3891.1,0.31680001]
[1758836021272,6.562,3891.2,3891.1,0.31680001]
[1758836021424,6.562,3891.2,3891.1,0.24430001]
[1758836021625,6.562,3891.2,3891.1,1e-08]
[1758836021830,6.562,3891.2,3891.1,0.24430001]
[1758836022574,0.40303498,3892.3,3891.1,0.31680001]
[1758836022881,2.56940627,3892.0,3891.2,0.2443]
[1758836023178,3.0,3891.8,3891.3,0.02569835]
[1758836023334,3.0,3891.8,3891.1,0.07250001]
[1758836023335,0.128,3891.5,3891.4,0.3168]
[1758836023665,0.128,3891.5,3891.4,2.93094091]
[1758836023828,4.418,3891.5,3891.4,2.93094091]
[1758836024027,4.418,3891.5,3891.4,3.17524091]
[1758836024462,4.418,3891.5,3891.4,0.53297168]
[1758836024687,4.418,3891.5,3891.4,0.2443]
[1758836026837,4.418,3891.5,3891.4,0.3168]
[1758836027032,4.417,3891.5,3891.4,2.88656923]
[1758836027242,0.128,3891.9,3891.4,0.2443]
[1758836027565,2.27,3892.2,3891.5,0.09819703]
[1758836027775,4.417,3892.1,3891.6,0.3168]
[1758836027938,4.417,3892.1,3891.9,2.56939742]
[1758836028134,4.417,3892.1,3892.0,0.85559686]
[1758836028482,4.417,3892.1,3892.0,3.42496993]
[1758836028691,0.128,3892.4,3892.0,3.42496993]
[1758836028891,2.702,3894.7,3892.0,3.42496993]
[1758836028892,2.142,3892.7,3892.1,2.8682778]
[1758836029199,4.416,3892.6,3892.2,2.79574104]
[1758836029364,4.416,3892.6,3892.3,3.1813912]
[1758836029567,4.416,3892.6,3892.4,0.2265]
[1758836029878,4.416,3892.6,3892.4,2.79560675]
[1758836030090,0.128,3892.7,3892.5,0.2265]
[1758836030262,4.415,3892.6,3892.5,0.25219043]
[1758836030597,4.415,3892.6,3892.5,2.82123346]
[1758836030784,4.415,3892.6,3892.5,3.36753053]
[1758836031489,4.415,3892.6,3892.5,0.7984875]
[1758836031684,0.4463,3894.2,3892.5,0.8709875]
[1758836031997,0.128,3893.3,3892.8,2.56882346]
[1758836032226,1.539,3893.2,3892.8,0.128]
[1758836032397,1.539,3893.2,3892.9,2.79526813]
[1758836032578,1.539,3893.2,3892.9,2.56876813]
[1758836032768,1.539,3893.2,3893.0,2.79519526]
[1758836033106,1.539,3893.2,3893.1,0.2265]
[1758836033395,0.001,3893.7,3893.1,0.25218647]
[1758836033598,4.538,3893.6,3893.3,2.56851342]
[1758836033808,0.128,3893.6,3893.4,2.82062605]
[1758836033970,0.128,3893.6,3893.5,0.2265]
[1758836033971,0.896,3893.6,3893.5,0.2265]
[1758836034169,0.768,3893.6,3893.5,2.7948832]
[1758836034492,0.768,3893.6,3893.5,3.34104108]
[1758836034667,0.768,3893.6,3893.5,0.77265788]
[1758836034868,0.768,3893.6,3893.5,3.34104108]
[1758836035298,0.001,3893.7,3893.5,3.34104108]
[1758836035477,0.001,3893.7,3893.6,0.0725]
[1758836035676,0.001,3893.7,3893.6,0.299]
[1758836036082,0.001,3893.7,3893.6,0.2265]
[1758836036403,0.001,3893.7,3893.4,2.56844471]
[1758836036805,0.001,3893.7,3893.5,0.2265]
[1758836036984,0.001,3893.7,3893.3,2.69649233]
[1758836037184,0.001,3893.7,3893.3,2.92299233]
[1758836037370,0.001,3893.7,3893.3,0.128]
[1758836037578,0.6891,3893.6,3892.7,0.2265]
[1758836037803,0.8171,3893.6,3892.9,0.128]
[1758836038008,0.8171,3893.6,3892.9,2.6967665]
[1758836038314,0.8171,3893.6,3893.0,2.56870482]
[1758836039613,0.8171,3893.6,3892.9,0.128]
[1758836039979,0.8171,3893.6,3892.9,2.69677752]
[1758836040181,0.8171,3893.6,3892.9,0.42032775]
[1758836040401,0.8171,3893.6,3892.3,0.0725]
[1758836040402,0.2428,3893.5,3892.2,0.2265]
[1758836040581,0.128,3892.7,3892.1,0.128]
[1758836040784,4.404,3892.6,3892.1,0.128]
[1758836041322,0.6891,3892.5,3892.1,0.128]
[1758836041618,2.56925705,3892.2,3891.3,2.56982911]
[1758836041787,5.0941,3892.1,3891.3,2.56982911]
[1758836041994,2.141,3892.0,3891.4,0.299]
[1758836042201,2.141,3892.0,3891.5,0.2265]
[1758836042514,2.141,3892.0,3891.6,2.79611844]
[1758836042711,2.141,3892.0,3891.6,3.33995703]
[1758836042880,4.404,3891.9,3891.7,2.7960658]
[1758836043083,4.404,3891.8,3891.7,2.5695658]
[1758836043386,2.141,3892.5,3891.8,2.56950511]
[1758836043598,4.403,3892.7,3892.5,2.56902581]
[1758836043826,2.259,3892.6,3892.5,2.56902581]
[1758836044130,2.5684521,3893.4,3892.5,3.08284823]
[1758836044326,6.546,3893.3,3892.6,0.2351]
[1758836044530,6.546,3893.3,3892.6,2.80401673]
[1758836044718,6.545,3893.2,3892.7,2.5688897]
[1758836044920,6.545,3893.2,3892.8,0.2351]
[1758836045425,0.4342,3893.7,3892.8,0.2351]
[1758836045627,2.141,3893.2,3892.4,0.2351]
[1758836045812,3.182,3893.1,3892.4,3.08464111]
[1758836046014,3.182,3893.1,3892.4,0.5155341]
[1758836046194,2.56877905,3892.9,3891.8,2.56944193]
[1758836046394,0.6831,3893.0,3891.7,0.2351]
[1758836046624,0.6831,3893.0,3892.3,2.56912411]
[1758836046825,6.545,3892.9,3892.3,2.56912411]
[1758836047428,6.547,3892.8,3892.3,2.56912411]
[1758836047926,6.547,3892.8,3892.3,2.80422411]
[1758836048331,6.547,3892.8,3892.4,2.56909548]
[1758836048509,6.547,3892.8,3892.5,2.56902923]
[1758836049220,6.547,3892.8,3892.6,2.56896412]
[1758836050139,6.547,3892.8,3892.5,2.56904176]
[1758836050301,6.547,3892.8,3892.3,0.2351]
[1758836050497,6.547,3892.8,3892.4,2.56906262]
[1758836050813,6.547,3892.8,3892.3,0.2351]
[1758836051018,6.547,3892.8,3892.4,2.56909576]
[1758836051539,6.675,3892.8,3892.4,2.56908899]
[1758836051702,6.675,3892.8,3892.3,0.2351]
[1758836052037,6.675,3892.8,3892.3,2.80421752]
[1758836052038,4.401,3892.7,3892.3,2.80421752]